[Event "Titled Tuesday Blitz July 18 Early 2023"]
[White "Zavgorodniy, Sergiy"]
[Black "Rian, Kapriaga"]
[WhiteFideId "14110148"]
[BlackFideId "7103263"]
[WhiteElo "2568"]
[BlackElo "2392"]
[Result "1-0"]
[Round "3"]
[TimeControl "180+2"]
[Date "2023.07.18"]
[WhiteClock "0:00:55"]
[BlackClock "0:00:00"]
[Board "123"]

1. d4 {[%clk 0:03:00]}  Nf6 {[%clk 0:02:58]} 2. c4 {[%clk 0:03:00]}  e6 {[%clk 0:02:58]} 3. Nf3 {[%clk 0:02:58]}  d5 {[%clk 0:02:59]} 4. e3 {[%clk 0:02:57]}  Be7 {[%clk 0:02:57]} 5. Nbd2 {[%clk 0:02:54]}  a6 {[%clk 0:02:56]} 6. Bd3 {[%clk 0:02:51]}  O-O {[%clk 0:02:54]} 7. O-O {[%clk 0:02:48]}  dxc4 {[%clk 0:02:53]} 8. Nxc4 {[%clk 0:02:47]}  Nbd7 {[%clk 0:02:48]} 9. b3 {[%clk 0:02:46]}  b5 {[%clk 0:02:45]} 10. Nce5 {[%clk 0:02:43]}  Bb7 {[%clk 0:02:45]} 11. Bb2 {[%clk 0:02:41]}  c5 {[%clk 0:02:43]} 12. a4 {[%clk 0:02:40]}  Qb6 {[%clk 0:02:36]} 13. Qe2 {[%clk 0:02:33]}  b4 {[%clk 0:02:05]} 14. a5 {[%clk 0:02:32]}  Qa7 {[%clk 0:02:01]} 15. Rac1 {[%clk 0:02:25]}  Nxe5 {[%clk 0:01:57]} 16. Nxe5 {[%clk 0:02:23]}  Rac8 {[%clk 0:01:53]} 17. Rfd1 {[%clk 0:02:20]}  Rfd8 {[%clk 0:01:45]} 18. h3 {[%clk 0:02:10]}  h6 {[%clk 0:01:44]} 19. Rc2 {[%clk 0:02:02]}  Qa8 {[%clk 0:01:35]} 20. f3 {[%clk 0:02:00]}  cxd4 {[%clk 0:01:29]} 21. Bxd4 {[%clk 0:02:01]}  Nd5 {[%clk 0:01:24]} 22. Rdc1 {[%clk 0:02:00]}  Rxc2 {[%clk 0:01:17]} 23. Rxc2 {[%clk 0:02:01]}  Nf4 {[%clk 0:01:15]} 24. Qf1 {[%clk 0:01:43]}  Nxd3 {[%clk 0:01:14]} 25. Qxd3 {[%clk 0:01:44]}  Bd6 {[%clk 0:01:05]} 26. Qe2 {[%clk 0:01:40]}  Bd5 {[%clk 0:00:59]} 27. Nc4 {[%clk 0:01:39]}  Bxc4 {[%clk 0:00:40]} 28. Qxc4 {[%clk 0:01:40]}  Qb8 {[%clk 0:00:20]} 29. Qxa6 {[%clk 0:01:35]}  Bh2+ {[%clk 0:00:18]} 30. Kf1 {[%clk 0:01:34]}  e5 {[%clk 0:00:15]} 31. Bb6 {[%clk 0:01:31]}  Qd6 {[%clk 0:00:11]} 32. Qe2 {[%clk 0:01:23]}  Rd7 {[%clk 0:00:09]} 33. Bc5 {[%clk 0:01:18]}  Qd5 {[%clk 0:00:07]} 34. Bxb4 {[%clk 0:01:14]}  Qxb3 {[%clk 0:00:07]} 35. Rc8+ {[%clk 0:01:13]}  Kh7 {[%clk 0:00:06]} 36. Qc2+ {[%clk 0:01:13]}  Qxc2 {[%clk 0:00:05]} 37. Rxc2 {[%clk 0:01:14]}  f5 {[%clk 0:00:05]} 38. a6 {[%clk 0:01:10]}  e4 {[%clk 0:00:05]} 39. f4 {[%clk 0:01:04]}  Rd1+ {[%clk 0:00:04]} 40. Kf2 {[%clk 0:01:04]}  Ra1 {[%clk 0:00:04]} 41. g3 {[%clk 0:01:00]}  Rxa6 {[%clk 0:00:02]} 42. Kg2 {[%clk 0:00:59]}  Rb6 {[%clk 0:00:02]} 43. Bc5 {[%clk 0:00:55]}  Rb3 {[%clk 0:00:00]} 44. Kxh2 {[%clk 0:00:55]} 1-0


[Site "https://www.chess.com"]

[Event "Titled Tuesday Blitz July 18 Early 2023"]
[White "Pinero Rodriguez, Carlos Jose"]
[Black "Nithyalakshmi, Sivanesan"]
[WhiteFideId "3901726"]
[BlackFideId "5706955"]
[WhiteElo "2565"]
[BlackElo "2366"]
[Result "1-0"]
[Round "3"]
[TimeControl "180+2"]
[Date "2023.07.18"]
[WhiteClock "0:02:05"]
[BlackClock "0:00:10"]
[Board "126"]

1. b3 {[%clk 0:03:00]}  d5 {[%clk 0:02:55]} 2. Bb2 {[%clk 0:03:00]}  Nf6 {[%clk 0:02:53]} 3. Nf3 {[%clk 0:03:01]}  g6 {[%clk 0:02:53]} 4. e3 {[%clk 0:02:59]}  Bg7 {[%clk 0:02:54]} 5. c4 {[%clk 0:02:59]}  c6 {[%clk 0:02:53]} 6. d4 {[%clk 0:02:58]}  O-O {[%clk 0:02:53]} 7. Bd3 {[%clk 0:02:56]}  Nbd7 {[%clk 0:02:46]} 8. cxd5 {[%clk 0:02:55]}  cxd5 {[%clk 0:02:45]} 9. Nc3 {[%clk 0:02:55]}  Re8 {[%clk 0:02:23]} 10. O-O {[%clk 0:02:55]}  Nf8 {[%clk 0:02:16]} 11. h3 {[%clk 0:02:53]}  a6 {[%clk 0:02:14]} 12. Rc1 {[%clk 0:02:53]}  Bf5 {[%clk 0:01:53]} 13. Ne5 {[%clk 0:02:47]}  Ne4 {[%clk 0:01:48]} 14. Nxe4 {[%clk 0:02:45]}  dxe4 {[%clk 0:01:45]} 15. Bc4 {[%clk 0:02:42]}  Bxe5 {[%clk 0:01:33]} 16. dxe5 {[%clk 0:02:43]}  Be6 {[%clk 0:01:28]} 17. Be2 {[%clk 0:02:42]}  Rc8 {[%clk 0:01:19]} 18. Bd4 {[%clk 0:02:42]}  Rxc1 {[%clk 0:01:16]} 19. Qxc1 {[%clk 0:02:42]}  Qd7 {[%clk 0:01:15]} 20. Qb1 {[%clk 0:02:41]}  Bd5 {[%clk 0:01:09]} 21. Rd1 {[%clk 0:02:41]}  Rc8 {[%clk 0:01:03]} 22. Bg4 {[%clk 0:02:34]}  Ne6 {[%clk 0:01:01]} 23. Bb2 {[%clk 0:02:32]}  Qc6 {[%clk 0:00:58]} 24. Ba3 {[%clk 0:02:22]}  Rc7 {[%clk 0:00:50]} 25. Qb2 {[%clk 0:02:15]}  Nc5 {[%clk 0:00:43]} 26. Rc1 {[%clk 0:02:07]}  Qb6 {[%clk 0:00:10]} 27. Qd4 {[%clk 0:02:05]} 1-0


[Site "https://www.chess.com"]

[Event "Titled Tuesday Blitz July 18 Early 2023"]
[White "Zhang, Eric"]
[Black "Wernberg, Hugo"]
[WhiteFideId "30907667"]
[BlackFideId "1737511"]
[WhiteElo "2565"]
[BlackElo "2360"]
[Result "0-1"]
[Round "3"]
[TimeControl "180+2"]
[Date "2023.07.18"]
[WhiteClock "0:00:17"]
[BlackClock "0:00:14"]
[Board "127"]

1. d4 {[%clk 0:03:00]}  d5 {[%clk 0:02:59]} 2. c4 {[%clk 0:03:01]}  e6 {[%clk 0:02:59]} 3. Nc3 {[%clk 0:03:01]}  a6 {[%clk 0:03:00]} 4. cxd5 {[%clk 0:02:59]}  exd5 {[%clk 0:03:01]} 5. Nf3 {[%clk 0:02:57]}  c6 {[%clk 0:03:01]} 6. Bg5 {[%clk 0:02:54]}  Be7 {[%clk 0:03:00]} 7. Bxe7 {[%clk 0:02:53]}  Qxe7 {[%clk 0:03:01]} 8. e3 {[%clk 0:02:54]}  Nf6 {[%clk 0:03:00]} 9. Bd3 {[%clk 0:02:54]}  Bg4 {[%clk 0:02:59]} 10. Qc2 {[%clk 0:02:53]}  Bh5 {[%clk 0:02:59]} 11. Ne5 {[%clk 0:02:52]}  Nbd7 {[%clk 0:02:54]} 12. f4 {[%clk 0:02:46]}  Bg6 {[%clk 0:02:55]} 13. O-O {[%clk 0:02:41]}  Bxd3 {[%clk 0:02:53]} 14. Qxd3 {[%clk 0:02:42]}  O-O {[%clk 0:02:48]} 15. Rf3 {[%clk 0:02:40]}  Ne8 {[%clk 0:02:40]} 16. Rh3 {[%clk 0:02:36]}  g6 {[%clk 0:02:12]} 17. Rf1 {[%clk 0:02:28]}  Nd6 {[%clk 0:01:49]} 18. g4 {[%clk 0:02:06]}  f6 {[%clk 0:01:22]} 19. Nxd7 {[%clk 0:01:36]}  Qxd7 {[%clk 0:01:23]} 20. Qe2 {[%clk 0:01:28]}  Rae8 {[%clk 0:01:16]} 21. Nd1 {[%clk 0:01:16]}  f5 {[%clk 0:00:54]} 22. gxf5 {[%clk 0:01:05]}  Nxf5 {[%clk 0:00:54]} 23. Qf3 {[%clk 0:01:02]}  Re7 {[%clk 0:00:45]} 24. Kh1 {[%clk 0:00:57]}  Rfe8 {[%clk 0:00:43]} 25. Qg4 {[%clk 0:00:31]}  Qe6 {[%clk 0:00:26]} 26. Rhf3 {[%clk 0:00:28]}  Nxd4 {[%clk 0:00:24]} 27. Qxe6+ {[%clk 0:00:20]}  Nxe6 {[%clk 0:00:25]} 28. f5 {[%clk 0:00:16]}  gxf5 {[%clk 0:00:25]} 29. Rxf5 {[%clk 0:00:17]}  Rf8 {[%clk 0:00:24]} 30. Rg1+ {[%clk 0:00:16]}  Rg7 {[%clk 0:00:23]} 31. Rxf8+ {[%clk 0:00:15]}  Kxf8 {[%clk 0:00:22]} 32. Rf1+ {[%clk 0:00:16]}  Rf7 {[%clk 0:00:22]} 33. Re1 {[%clk 0:00:15]}  Nc5 {[%clk 0:00:22]} 34. Kg2 {[%clk 0:00:16]}  Ne4 {[%clk 0:00:22]} 35. Re2 {[%clk 0:00:16]}  Ke7 {[%clk 0:00:22]} 36. Nc3 {[%clk 0:00:16]}  Nxc3 {[%clk 0:00:22]} 37. bxc3 {[%clk 0:00:17]}  Kd6 {[%clk 0:00:21]} 38. Rb2 {[%clk 0:00:18]}  b5 {[%clk 0:00:21]} 39. Rd2 {[%clk 0:00:17]}  Kc5 {[%clk 0:00:21]} 40. Rd4 {[%clk 0:00:17]}  a5 {[%clk 0:00:20]} 41. a3 {[%clk 0:00:17]}  Re7 {[%clk 0:00:17]} 42. Kf2 {[%clk 0:00:18]}  Re4 {[%clk 0:00:17]} 43. Rd2 {[%clk 0:00:14]}  Kc4 {[%clk 0:00:17]} 44. Rc2 {[%clk 0:00:14]}  Kd3 {[%clk 0:00:15]} 45. Rc1 {[%clk 0:00:14]}  Rxe3 {[%clk 0:00:09]} 46. Rd1+ {[%clk 0:00:15]}  Kc2 {[%clk 0:00:10]} 47. Rg1 {[%clk 0:00:12]}  Rxc3 {[%clk 0:00:10]} 48. Rg7 {[%clk 0:00:12]}  Kb3 {[%clk 0:00:09]} 49. Rxh7 {[%clk 0:00:11]}  Kxa3 {[%clk 0:00:09]} 50. h4 {[%clk 0:00:11]}  b4 {[%clk 0:00:09]} 51. h5 {[%clk 0:00:11]}  Rh3 {[%clk 0:00:07]} 52. Kg2 {[%clk 0:00:11]}  Rh4 {[%clk 0:00:08]} 53. Kg3 {[%clk 0:00:12]}  Rh1 {[%clk 0:00:07]} 54. Kg2 {[%clk 0:00:12]}  Re1 {[%clk 0:00:07]} 55. Kf2 {[%clk 0:00:12]}  Re5 {[%clk 0:00:07]} 56. h6 {[%clk 0:00:11]}  b3 {[%clk 0:00:06]} 57. Rb7 {[%clk 0:00:10]}  Rh5 {[%clk 0:00:06]} 58. h7 {[%clk 0:00:10]}  b2 {[%clk 0:00:06]} 59. Ke2 {[%clk 0:00:05]}  Rxh7 {[%clk 0:00:06]} 60. Rxh7 {[%clk 0:00:04]}  b1=Q {[%clk 0:00:06]} 61. Rh3+ {[%clk 0:00:05]}  Qb3 {[%clk 0:00:06]} 62. Re3 {[%clk 0:00:06]}  Qxe3+ {[%clk 0:00:06]} 63. Kxe3 {[%clk 0:00:07]}  Kb4 {[%clk 0:00:07]} 64. Kd4 {[%clk 0:00:08]}  a4 {[%clk 0:00:08]} 65. Kd3 {[%clk 0:00:09]}  a3 {[%clk 0:00:08]} 66. Kc2 {[%clk 0:00:10]}  c5 {[%clk 0:00:09]} 67. Kb1 {[%clk 0:00:10]}  c4 {[%clk 0:00:09]} 68. Ka2 {[%clk 0:00:10]}  d4 {[%clk 0:00:10]} 69. Kb1 {[%clk 0:00:11]}  Kb3 {[%clk 0:00:11]} 70. Ka1 {[%clk 0:00:12]}  c3 {[%clk 0:00:11]} 71. Kb1 {[%clk 0:00:12]}  d3 {[%clk 0:00:12]} 72. Kc1 {[%clk 0:00:13]}  Kb4 {[%clk 0:00:12]} 73. Kb1 {[%clk 0:00:14]}  Ka4 {[%clk 0:00:13]} 74. Ka2 {[%clk 0:00:14]}  d2 {[%clk 0:00:12]} 75. Ka1 {[%clk 0:00:15]}  d1=Q+ {[%clk 0:00:12]} 76. Ka2 {[%clk 0:00:16]}  Qc2+ {[%clk 0:00:13]} 77. Ka1 {[%clk 0:00:17]}  Qb2# {[%clk 0:00:14]} 0-1


[Site "https://www.chess.com"]

[Event "Titled Tuesday Blitz July 18 Early 2023"]
[White "Bendayan Claros, Aaron"]
[Black "Mamedov, Edgar"]
[WhiteFideId "3803392"]
[BlackFideId "13739980"]
[WhiteElo "2348"]
[BlackElo "2562"]
[Result "1-0"]
[Round "3"]
[TimeControl "180+2"]
[Date "2023.07.18"]
[WhiteClock "0:00:57"]
[BlackClock "0:00:00"]
[Board "130"]

1. d4 {[%clk 0:03:00]}  d5 {[%clk 0:02:59]} 2. Nf3 {[%clk 0:02:58]}  Nf6 {[%clk 0:02:57]} 3. e3 {[%clk 0:02:56]}  c5 {[%clk 0:02:50]} 4. Nbd2 {[%clk 0:02:54]}  e6 {[%clk 0:02:47]} 5. b3 {[%clk 0:02:51]}  Nc6 {[%clk 0:02:41]} 6. Bd3 {[%clk 0:02:50]}  cxd4 {[%clk 0:02:40]} 7. exd4 {[%clk 0:02:50]}  Qc7 {[%clk 0:02:36]} 8. a3 {[%clk 0:02:39]}  Bd6 {[%clk 0:02:32]} 9. Bb2 {[%clk 0:02:38]}  O-O {[%clk 0:02:25]} 10. Qe2 {[%clk 0:02:37]}  a6 {[%clk 0:02:06]} 11. O-O {[%clk 0:02:37]}  b5 {[%clk 0:02:05]} 12. Ne5 {[%clk 0:02:37]}  Bb7 {[%clk 0:02:03]} 13. f4 {[%clk 0:02:36]}  Ne7 {[%clk 0:02:03]} 14. Rf3 {[%clk 0:02:32]}  Rac8 {[%clk 0:01:48]} 15. Rc1 {[%clk 0:02:32]}  g6 {[%clk 0:01:29]} 16. Rh3 {[%clk 0:02:32]}  Qa5 {[%clk 0:01:18]} 17. b4 {[%clk 0:02:28]}  Qb6 {[%clk 0:01:17]} 18. g4 {[%clk 0:02:18]}  Ne4 {[%clk 0:00:56]} 19. Nxe4 {[%clk 0:02:16]}  dxe4 {[%clk 0:00:55]} 20. Bxe4 {[%clk 0:02:17]}  Bxe4 {[%clk 0:00:53]} 21. Qxe4 {[%clk 0:02:17]}  Rc7 {[%clk 0:00:46]} 22. Rf1 {[%clk 0:02:05]}  Qb7 {[%clk 0:00:32]} 23. Qe2 {[%clk 0:01:59]}  Rfc8 {[%clk 0:00:30]} 24. c3 {[%clk 0:01:59]}  Qd5 {[%clk 0:00:28]} 25. Qf2 {[%clk 0:01:53]}  f6 {[%clk 0:00:25]} 26. Qh4 {[%clk 0:01:27]}  Nf5 {[%clk 0:00:18]} 27. gxf5 {[%clk 0:01:25]}  fxe5 {[%clk 0:00:18]} 28. fxe5 {[%clk 0:01:25]}  Bf8 {[%clk 0:00:15]} 29. fxg6 {[%clk 0:01:24]}  Rg7 {[%clk 0:00:15]} 30. Rg3 {[%clk 0:01:19]}  Be7 {[%clk 0:00:10]} 31. Qh6 {[%clk 0:01:07]}  Qe4 {[%clk 0:00:05]} 32. gxh7+ {[%clk 0:00:56]}  Qxh7 {[%clk 0:00:00]} 33. Qxe6+ {[%clk 0:00:57]} 1-0


[Site "https://www.chess.com"]

[Event "Titled Tuesday Blitz July 18 Early 2023"]
[White "NovoselovRoman"]
[Black "Gutkin, Ilya"]
[BlackFideId "16203470"]
[WhiteElo "2558"]
[BlackElo "2346"]
[Result "1-0"]
[Round "3"]
[TimeControl "180+2"]
[Date "2023.07.18"]
[WhiteClock "0:00:04"]
[BlackClock "0:00:00"]
[Board "131"]

1. e4 {[%clk 0:02:57]}  e5 {[%clk 0:02:58]} 2. Nf3 {[%clk 0:02:57]}  Nc6 {[%clk 0:02:59]} 3. Bc4 {[%clk 0:02:57]}  Nf6 {[%clk 0:02:59]} 4. Nc3 {[%clk 0:02:52]}  Bc5 {[%clk 0:02:58]} 5. d3 {[%clk 0:02:49]}  d6 {[%clk 0:02:58]} 6. Bg5 {[%clk 0:02:49]}  h6 {[%clk 0:02:58]} 7. Bh4 {[%clk 0:02:49]}  Be6 {[%clk 0:02:57]} 8. Bb3 {[%clk 0:02:32]}  Ne7 {[%clk 0:02:18]} 9. d4 {[%clk 0:02:19]}  exd4 {[%clk 0:02:13]} 10. Bxf6 {[%clk 0:02:20]}  dxc3 {[%clk 0:01:45]} 11. Bxc3 {[%clk 0:02:21]}  O-O {[%clk 0:01:40]} 12. Nd4 {[%clk 0:02:11]}  Bxb3 {[%clk 0:01:39]} 13. Nxb3 {[%clk 0:02:03]}  Bb6 {[%clk 0:01:37]} 14. Qg4 {[%clk 0:01:47]}  Ng6 {[%clk 0:01:35]} 15. h4 {[%clk 0:01:35]}  Ne5 {[%clk 0:01:32]} 16. Qg3 {[%clk 0:01:32]}  f6 {[%clk 0:01:26]} 17. O-O-O {[%clk 0:01:19]}  a5 {[%clk 0:01:12]} 18. f4 {[%clk 0:01:09]}  Nd7 {[%clk 0:01:10]} 19. Rh3 {[%clk 0:01:03]}  a4 {[%clk 0:01:10]} 20. Nd4 {[%clk 0:01:04]}  Nc5 {[%clk 0:01:06]} 21. Nf5 {[%clk 0:00:50]}  Qd7 {[%clk 0:00:55]} 22. Qg6 {[%clk 0:00:41]}  Kh8 {[%clk 0:00:29]} 23. Re1 {[%clk 0:00:13]}  Ne6 {[%clk 0:00:21]} 24. Rf3 {[%clk 0:00:05]}  Qf7 {[%clk 0:00:16]} 25. Qg4 {[%clk 0:00:06]}  Rae8 {[%clk 0:00:13]} 26. h5 {[%clk 0:00:05]}  Nc5 {[%clk 0:00:13]} 27. Nh4 {[%clk 0:00:04]}  Rg8 {[%clk 0:00:00]} 28. e5 {[%clk 0:00:04]} 1-0


[Site "https://www.chess.com"]

[Event "Titled Tuesday Blitz July 18 Early 2023"]
[White "Siniauski, Artsiom"]
[Black "Vasques, Antonio Pedro Freixial"]
[WhiteFideId "13512269"]
[BlackFideId "1908332"]
[WhiteElo "2556"]
[BlackElo "2322"]
[Result "1-0"]
[Round "3"]
[TimeControl "180+2"]
[Date "2023.07.18"]
[WhiteClock "0:00:19"]
[BlackClock "0:00:03"]
[Board "132"]

1. e4 {[%clk 0:02:57]}  c5 {[%clk 0:02:58]} 2. Nf3 {[%clk 0:02:57]}  Nc6 {[%clk 0:02:58]} 3. Bb5 {[%clk 0:02:57]}  g6 {[%clk 0:02:58]} 4. Bxc6 {[%clk 0:02:57]}  dxc6 {[%clk 0:02:59]} 5. d3 {[%clk 0:02:57]}  Bg4 {[%clk 0:02:56]} 6. h3 {[%clk 0:02:51]}  Bxf3 {[%clk 0:02:56]} 7. Qxf3 {[%clk 0:02:51]}  Bg7 {[%clk 0:02:57]} 8. Nc3 {[%clk 0:02:51]}  Nf6 {[%clk 0:02:56]} 9. Be3 {[%clk 0:02:51]}  Nd7 {[%clk 0:02:55]} 10. O-O {[%clk 0:02:50]}  Qc7 {[%clk 0:02:50]} 11. a3 {[%clk 0:02:42]}  b6 {[%clk 0:02:46]} 12. Rab1 {[%clk 0:02:42]}  Nf8 {[%clk 0:02:43]} 13. Ne2 {[%clk 0:02:41]}  Ne6 {[%clk 0:02:40]} 14. c3 {[%clk 0:02:04]}  Rd8 {[%clk 0:02:38]} 15. Rfd1 {[%clk 0:02:03]}  Qe5 {[%clk 0:02:31]} 16. b4 {[%clk 0:01:58]}  O-O {[%clk 0:02:23]} 17. bxc5 {[%clk 0:01:56]}  bxc5 {[%clk 0:02:17]} 18. Rb7 {[%clk 0:01:55]}  f5 {[%clk 0:02:08]} 19. exf5 {[%clk 0:01:48]}  Rxf5 {[%clk 0:02:05]} 20. Qxc6 {[%clk 0:01:46]}  Rd6 {[%clk 0:01:45]} 21. Qe8+ {[%clk 0:01:43]}  Bf8 {[%clk 0:01:38]} 22. Qb8 {[%clk 0:01:07]}  Nd8 {[%clk 0:00:57]} 23. Rb5 {[%clk 0:00:51]}  Nc6 {[%clk 0:00:30]} 24. Qb7 {[%clk 0:00:36]}  Qe6 {[%clk 0:00:17]} 25. Ng3 {[%clk 0:00:32]}  Rfd5 {[%clk 0:00:15]} 26. Rxc5 {[%clk 0:00:21]}  Rxd3 {[%clk 0:00:03]} 27. Rxd3 {[%clk 0:00:19]} 1-0


[Site "https://www.chess.com"]

[Event "Titled Tuesday Blitz July 18 Early 2023"]
[White "ExchangeAB"]
[Black "Der_Balak_3Halak"]
[WhiteElo "2319"]
[BlackElo "2555"]
[Result "0-1"]
[Round "3"]
[TimeControl "180+2"]
[Date "2023.07.18"]
[WhiteClock "0:00:09"]
[BlackClock "0:00:09"]
[Board "133"]

1. d4 {[%clk 0:03:00]}  d5 {[%clk 0:02:54]} 2. Nc3 {[%clk 0:03:01]}  Bf5 {[%clk 0:02:53]} 3. f3 {[%clk 0:02:57]}  Nf6 {[%clk 0:02:51]} 4. Bf4 {[%clk 0:02:57]}  e6 {[%clk 0:02:47]} 5. g4 {[%clk 0:02:55]}  Bg6 {[%clk 0:02:44]} 6. h4 {[%clk 0:02:55]}  h5 {[%clk 0:02:42]} 7. g5 {[%clk 0:02:53]}  Nfd7 {[%clk 0:02:42]} 8. Nb5 {[%clk 0:02:44]}  Na6 {[%clk 0:02:40]} 9. e3 {[%clk 0:02:44]}  Nb6 {[%clk 0:02:23]} 10. Bd3 {[%clk 0:02:39]}  Bxd3 {[%clk 0:02:22]} 11. Qxd3 {[%clk 0:02:40]}  c6 {[%clk 0:02:21]} 12. Nc3 {[%clk 0:02:39]}  Nb4 {[%clk 0:02:16]} 13. Qd1 {[%clk 0:02:35]}  Bd6 {[%clk 0:02:02]} 14. Nge2 {[%clk 0:02:34]}  Nc4 {[%clk 0:01:59]} 15. Qc1 {[%clk 0:02:24]}  Bxf4 {[%clk 0:01:59]} 16. Nxf4 {[%clk 0:02:23]}  Nxe3 {[%clk 0:01:59]} 17. Rh2 {[%clk 0:02:15]}  Nf5 {[%clk 0:01:46]} 18. a3 {[%clk 0:02:09]}  Nxd4 {[%clk 0:01:45]} 19. Rf2 {[%clk 0:01:39]}  Na6 {[%clk 0:01:15]} 20. Qe3 {[%clk 0:01:38]}  c5 {[%clk 0:01:13]} 21. Ncxd5 {[%clk 0:01:24]}  O-O {[%clk 0:01:04]} 22. Nc3 {[%clk 0:01:23]}  Nf5 {[%clk 0:01:03]} 23. Qe5 {[%clk 0:01:13]}  Qd4 {[%clk 0:00:51]} 24. Qxd4 {[%clk 0:01:04]}  cxd4 {[%clk 0:00:52]} 25. Ne4 {[%clk 0:00:58]}  g6 {[%clk 0:00:49]} 26. Rh2 {[%clk 0:00:54]}  Rac8 {[%clk 0:00:44]} 27. O-O-O {[%clk 0:00:53]}  Nc5 {[%clk 0:00:40]} 28. Kb1 {[%clk 0:00:49]}  Kg7 {[%clk 0:00:26]} 29. Nf6 {[%clk 0:00:46]}  Rfd8 {[%clk 0:00:24]} 30. Nd3 {[%clk 0:00:42]}  Nd7 {[%clk 0:00:20]} 31. Ne4 {[%clk 0:00:38]}  e5 {[%clk 0:00:20]} 32. f4 {[%clk 0:00:36]}  Ne3 {[%clk 0:00:20]} 33. Re1 {[%clk 0:00:31]}  exf4 {[%clk 0:00:16]} 34. Nxf4 {[%clk 0:00:31]}  Nc5 {[%clk 0:00:15]} 35. Nxc5 {[%clk 0:00:31]}  Rxc5 {[%clk 0:00:15]} 36. Nd3 {[%clk 0:00:30]}  Rf5 {[%clk 0:00:15]} 37. c3 {[%clk 0:00:23]}  Ng4 {[%clk 0:00:11]} 38. Rc2 {[%clk 0:00:21]}  dxc3 {[%clk 0:00:12]} 39. Rxc3 {[%clk 0:00:21]}  Rf3 {[%clk 0:00:11]} 40. Ne5 {[%clk 0:00:19]}  Nxe5 {[%clk 0:00:09]} 41. Rxe5 {[%clk 0:00:20]}  Rf1+ {[%clk 0:00:08]} 42. Ka2 {[%clk 0:00:20]}  Rd4 {[%clk 0:00:09]} 43. Re7 {[%clk 0:00:20]}  Rxh4 {[%clk 0:00:09]} 44. Rxb7 {[%clk 0:00:20]}  a5 {[%clk 0:00:09]} 45. Rb5 {[%clk 0:00:20]}  a4 {[%clk 0:00:10]} 46. b3 {[%clk 0:00:09]}  Rh2+ {[%clk 0:00:09]} 0-1


[Site "https://www.chess.com"]

[Event "Titled Tuesday Blitz July 18 Early 2023"]
[White "San Thit Lwin"]
[Black "Moskvin, Anatoly"]
[WhiteFideId "13001272"]
[BlackFideId "24199990"]
[WhiteElo "2318"]
[BlackElo "2552"]
[Result "0-1"]
[Round "3"]
[TimeControl "180+2"]
[Date "2023.07.18"]
[WhiteClock "0:01:02"]
[BlackClock "0:01:15"]
[Board "134"]

1. Nf3 {[%clk 0:03:00]}  g6 {[%clk 0:02:59]} 2. c4 {[%clk 0:03:00]}  Bg7 {[%clk 0:02:59]} 3. d4 {[%clk 0:03:01]}  c5 {[%clk 0:03:00]} 4. d5 {[%clk 0:03:00]}  b5 {[%clk 0:02:59]} 5. cxb5 {[%clk 0:03:00]}  a6 {[%clk 0:03:00]} 6. e4 {[%clk 0:02:59]}  d6 {[%clk 0:02:58]} 7. Nc3 {[%clk 0:02:56]}  Nf6 {[%clk 0:02:58]} 8. a4 {[%clk 0:02:55]}  O-O {[%clk 0:02:59]} 9. Be2 {[%clk 0:02:55]}  axb5 {[%clk 0:02:58]} 10. Bxb5 {[%clk 0:02:54]}  Ba6 {[%clk 0:02:58]} 11. Rb1 {[%clk 0:02:53]}  Bxb5 {[%clk 0:02:57]} 12. axb5 {[%clk 0:02:53]}  Nbd7 {[%clk 0:02:57]} 13. O-O {[%clk 0:02:53]}  Qa5 {[%clk 0:02:54]} 14. Bd2 {[%clk 0:02:50]}  Rfb8 {[%clk 0:02:53]} 15. Qc2 {[%clk 0:02:47]}  Ng4 {[%clk 0:02:51]} 16. Bg5 {[%clk 0:02:20]}  Kf8 {[%clk 0:02:31]} 17. h3 {[%clk 0:02:18]}  Nge5 {[%clk 0:02:30]} 18. Nd2 {[%clk 0:02:18]}  Qb4 {[%clk 0:02:23]} 19. Be3 {[%clk 0:02:14]}  Nc4 {[%clk 0:02:04]} 20. Nxc4 {[%clk 0:02:14]}  Qxc4 {[%clk 0:02:05]} 21. Rfc1 {[%clk 0:02:14]}  Ne5 {[%clk 0:01:47]} 22. Qd2 {[%clk 0:01:42]}  Qb3 {[%clk 0:01:34]} 23. Bh6 {[%clk 0:01:38]}  Nc4 {[%clk 0:01:33]} 24. Bxg7+ {[%clk 0:01:38]}  Kxg7 {[%clk 0:01:34]} 25. Qg5 {[%clk 0:01:36]}  f6 {[%clk 0:01:25]} 26. Qg3 {[%clk 0:01:32]}  Nd2 {[%clk 0:01:21]} 27. Ra1 {[%clk 0:01:24]}  Qxb2 {[%clk 0:01:18]} 28. e5 {[%clk 0:01:11]}  Rxa1 {[%clk 0:01:17]} 29. exf6+ {[%clk 0:01:10]}  exf6 {[%clk 0:01:17]} 30. Rxa1 {[%clk 0:01:06]}  Qxa1+ {[%clk 0:01:17]} 31. Kh2 {[%clk 0:01:02]}  Nf1+ {[%clk 0:01:15]} 0-1


[Site "https://www.chess.com"]

[Event "Titled Tuesday Blitz July 18 Early 2023"]
[White "Da Matta, Eduardo Cesar"]
[Black "Portela Peleteiro, Alberto"]
[WhiteFideId "2193108"]
[BlackFideId "22276106"]
[WhiteElo "2316"]
[BlackElo "2552"]
[Result "0-1"]
[Round "3"]
[TimeControl "180+2"]
[Date "2023.07.18"]
[WhiteClock "0:00:02"]
[BlackClock "0:00:14"]
[Board "135"]

1. d4 {[%clk 0:03:00]}  d5 {[%clk 0:02:58]} 2. c4 {[%clk 0:03:01]}  e6 {[%clk 0:02:58]} 3. Nc3 {[%clk 0:03:01]}  c6 {[%clk 0:02:58]} 4. e3 {[%clk 0:02:59]}  Bd6 {[%clk 0:02:57]} 5. Nf3 {[%clk 0:02:56]}  f5 {[%clk 0:02:57]} 6. g3 {[%clk 0:02:55]}  Nf6 {[%clk 0:02:56]} 7. Bg2 {[%clk 0:02:55]}  O-O {[%clk 0:02:57]} 8. O-O {[%clk 0:02:55]}  Nbd7 {[%clk 0:02:56]} 9. b3 {[%clk 0:02:56]}  Ne4 {[%clk 0:02:55]} 10. Bb2 {[%clk 0:02:56]}  b6 {[%clk 0:02:52]} 11. Ne2 {[%clk 0:02:55]}  Qe7 {[%clk 0:02:45]} 12. Nf4 {[%clk 0:02:54]}  Ba6 {[%clk 0:02:23]} 13. Rc1 {[%clk 0:02:50]}  Rac8 {[%clk 0:02:18]} 14. Nd3 {[%clk 0:02:49]}  dxc4 {[%clk 0:01:58]} 15. bxc4 {[%clk 0:02:48]}  c5 {[%clk 0:01:58]} 16. dxc5 {[%clk 0:02:26]}  Ndxc5 {[%clk 0:01:59]} 17. Nfe5 {[%clk 0:02:24]}  Nxd3 {[%clk 0:01:53]} 18. Qxd3 {[%clk 0:02:22]}  Rfd8 {[%clk 0:01:45]} 19. Qc2 {[%clk 0:01:32]}  Bxe5 {[%clk 0:01:37]} 20. Bxe5 {[%clk 0:01:33]}  Rxc4 {[%clk 0:01:13]} 21. Qb2 {[%clk 0:01:27]}  Rb4 {[%clk 0:01:14]} 22. Qa3 {[%clk 0:01:14]}  Bxf1 {[%clk 0:01:12]} 23. Bxf1 {[%clk 0:01:02]}  a5 {[%clk 0:01:02]} 24. Rc6 {[%clk 0:00:47]}  Nc5 {[%clk 0:00:46]} 25. Qc3 {[%clk 0:00:31]}  Rb1 {[%clk 0:00:46]} 26. Qc2 {[%clk 0:00:19]}  Rdd1 {[%clk 0:00:44]} 27. Rc7 {[%clk 0:00:18]}  Rxf1+ {[%clk 0:00:43]} 28. Kg2 {[%clk 0:00:18]}  Qf8 {[%clk 0:00:32]} 29. Rxg7+ {[%clk 0:00:17]}  Qxg7 {[%clk 0:00:33]} 30. Bxg7 {[%clk 0:00:18]}  Kxg7 {[%clk 0:00:34]} 31. Qc3+ {[%clk 0:00:15]}  Kg8 {[%clk 0:00:33]} 32. Qe5 {[%clk 0:00:14]}  Rfd1 {[%clk 0:00:29]} 33. Qb8+ {[%clk 0:00:12]}  Kg7 {[%clk 0:00:29]} 34. Qe8 {[%clk 0:00:12]}  Rd7 {[%clk 0:00:27]} 35. h4 {[%clk 0:00:11]}  Rbd1 {[%clk 0:00:22]} 36. Qh5 {[%clk 0:00:10]}  R1d2 {[%clk 0:00:16]} 37. Qg5+ {[%clk 0:00:10]}  Kf7 {[%clk 0:00:14]} 38. h5 {[%clk 0:00:10]}  Rxf2+ {[%clk 0:00:12]} 39. Kh3 {[%clk 0:00:08]}  Ne4 {[%clk 0:00:13]} 40. Qh6 {[%clk 0:00:07]}  Rf3 {[%clk 0:00:12]} 41. Qxh7+ {[%clk 0:00:05]}  Ke8 {[%clk 0:00:12]} 42. Qg8+ {[%clk 0:00:05]}  Ke7 {[%clk 0:00:13]} 43. h6 {[%clk 0:00:04]}  Rxg3+ {[%clk 0:00:13]} 44. Qxg3 {[%clk 0:00:04]}  Nxg3 {[%clk 0:00:14]} 45. Kxg3 {[%clk 0:00:02]}  Rd8 {[%clk 0:00:14]} 0-1


[Site "https://www.chess.com"]